bitfinex/quotes_SOLUSD_20220128
["timestamp","ask_amount","ask_price","bid_price","bid_amount"]
[1643350360090,0.25,93.429,93.335,2.20173962]
[1643350360286,0.25,93.429,93.336,0.25]
[1643350360690,0.25,93.429,93.337,2.20173962]
[1643350360887,0.25,93.429,93.338,0.25]
[1643350361086,0.25,93.429,93.337,2.20173962]
[1643350361288,107.45,93.429,93.333,5.7047091]
[1643350361491,107.45,93.429,93.343,6.0]
[1643350362091,107.45,93.429,93.333,5.7047091]
[1643350362291,107.45,93.429,93.334,0.25]
[1643350364294,6.0,93.419,93.334,0.25]
[1643350364699,0.25,93.418,93.334,0.25]
[1643350365899,0.25,93.428,93.334,0.25]
[1643350366902,21.14109088,93.427,93.334,0.25]
[1643350367103,6.0,93.419,93.334,0.25]
[1643350367303,6.0,93.419,93.335,2.20173962]
[1643350367502,0.25,93.418,93.335,2.20173962]
[1643350367704,0.25,93.418,93.336,0.25]
[1643350368824,0.25,93.419,93.334,0.25]
[1643350369022,6.25,93.419,93.334,0.25]
[1643350369624,6.25,93.419,93.333,5.7047091]
[1643350369827,6.25,93.419,93.343,6.0]
[1643350370728,6.25,93.419,93.333,7.90644872]
[1643350370729,6.0,93.418,93.333,7.90644872]
[1643350370927,6.0,93.418,93.344,0.25]
[1643350371129,0.25,93.417,93.334,0.25]
[1643350371728,6.0,93.418,93.334,0.25]
[1643350371928,6.0,93.418,93.335,2.20173962]
[1643350372136,6.0,93.42,93.343,6.0]
[1643350372330,6.0,93.42,93.344,0.25]
[1643350372531,6.0,93.42,93.345,6.0]
[1643350372931,6.0,93.42,93.35,12.87]
[1643350373130,6.0,93.42,93.351,15.87296003]
[1643350373328,6.0,93.42,93.351,16.12296003]
[1643350373933,0.25,93.419,93.351,16.12296003]
[1643350374331,6.0,93.42,93.351,16.12296003]
[1643350376133,23.8733,93.439,93.351,16.12296003]
[1643350376333,23.6238,93.46,93.352,12.69193962]
[1643350376633,23.6238,93.46,93.362,6.0]
[1643350376833,0.25,93.459,93.363,0.25]
[1643350377033,0.25,93.459,93.363,2.45173962]
[1643350377232,36.74802044,93.459,93.363,0.25]
[1643350377634,57.88911132,93.459,93.363,0.25]
[1643350378135,80.88811132,93.459,93.363,0.25]
[1643350378333,80.88811132,93.459,93.371,5.7047091]
[1643350378734,80.88811132,93.459,93.372,0.25]
[1643350379536,80.88811132,93.459,93.373,10.4902]
[1643350379943,80.88811132,93.459,93.374,0.25]
[1643350380140,107.2,93.458,93.374,0.25]
[1643350380343,6.0,93.448,93.374,0.25]
[1643350380742,0.25,93.447,93.373,10.4902]
[1643350380943,6.0,93.448,93.373,10.4902]
[1643350381144,59.49702044,93.459,93.375,2.20173962]
[1643350381344,59.49702044,93.459,93.383,6.0]
[1643350381542,59.49702044,93.459,93.386,15.87296003]
[1643350381742,36.49802044,93.459,93.386,15.87296003]
[1643350382141,36.49802044,93.459,93.387,0.25]
[1643350382342,36.49802044,93.459,93.387,2.45173962]
[1643350382543,36.49802044,93.459,93.388,2.20173962]
[1643350382742,36.49802044,93.459,93.387,10.7402]
[1643350382942,36.49802044,93.459,93.389,0.25]
[1643350383143,36.49802044,93.459,93.387,10.7402]
[1643350384647,0.25,93.458,93.387,10.7402]
[1643350385047,36.49802044,93.459,93.387,10.7402]
[1643350387750,36.49802044,93.459,93.387,10.4902]
[1643350387948,0.25,93.458,93.387,10.4902]
[1643350388550,0.25,93.458,93.397,6.0]
[1643350388751,0.25,93.458,93.387,10.4902]
[1643350388950,0.25,93.458,93.398,10.4902]
[1643350389349,0.25,93.458,93.399,0.25]
[1643350389550,0.25,93.458,93.398,10.4902]
[1643350390551,6.0,93.449,93.398,10.4902]
[1643350390951,6.0,93.449,93.399,0.25]
[1643350391355,0.25,93.448,93.399,0.25]
[1643350391752,0.25,93.448,93.398,10.4902]
[1643350392153,0.25,93.448,93.366,10.4902]
[1643350392353,0.25,93.448,93.367,20.01498421]
[1643350392960,22.5262,93.458,93.367,20.01498421]
[1643350393154,22.5262,93.458,93.368,0.25]
[1643350393554,6.0,93.448,93.368,0.25]
[1643350393956,6.0,93.448,93.366,10.4902]
[1643350394154,27.14109088,93.447,93.366,10.4902]
[1643350394355,44.83439506,93.439,93.366,10.4902]
[1643350394575,6.0,93.429,93.366,10.4902]
[1643350394760,107.2,93.428,93.366,10.4902]
[1643350395157,0.25,93.427,93.341,10.4902]
[1643350395356,0.25,93.427,93.35,6.0]
[1643350395559,0.25,93.427,93.341,10.4902]
[1643350395858,44.63364761,93.417,93.341,10.4902]
[1643350396057,6.0,93.407,93.341,10.4902]
[1643350396558,6.0,93.4,93.341,10.4902]
[1643350396757,44.11232529,93.399,93.341,10.4902]
[1643350396957,6.0,93.396,93.341,10.4902]
[1643350397258,107.2,93.388,93.341,10.4902]
[1643350397456,113.2,93.388,93.341,10.4902]
[1643350397658,0.25,93.387,93.341,10.4902]
[1643350397957,6.0,93.38,93.341,10.4902]
[1643350398356,6.0,93.378,93.281,10.4902]
[1643350398556,6.0,93.378,93.281,10.7402]
[1643350398758,0.25,93.377,93.281,10.7402]
[1643350398957,38.74761053,93.377,93.282,16.37990976]
[1643350399358,107.2,93.376,93.283,0.25]
[1643350399561,117.77,93.376,93.283,0.25]
[1643350399758,0.25,93.375,93.283,0.25]
[1643350400358,6.0,93.366,93.283,0.25]
[1643350400762,0.25,93.365,93.283,0.25]
[1643350401363,0.25,93.365,93.284,10.4902]
[1643350401764,0.25,93.365,93.285,0.25]
[1643350404166,35.68784234,93.363,93.285,0.25]
[1643350404366,0.25,93.362,93.285,0.25]
[1643350404566,0.25,93.362,93.286,10.4902]
[1643350404766,6.0,93.353,93.287,0.25]
[1643350406271,6.0,93.353,93.286,10.4902]
[1643350407570,6.0,93.353,93.287,0.25]
[1643350407772,6.0,93.353,93.283,10.7402]
[1643350408775,0.25,93.352,93.283,10.7402]
[1643350408975,6.0,93.353,93.283,10.7402]
[1643350410103,16.0805,93.4,93.283,10.7402]
[1643350410299,53.6014,93.43,93.293,6.0]
[1643350410500,107.2,93.4,93.3,15.44]
[1643350410701,0.25,93.398,93.3,15.44]
[1643350410901,38.43320257,93.398,93.301,5.44775937]
[1643350411702,61.43440257,93.398,93.301,5.44775937]
[1643350412301,61.43440257,93.398,93.311,6.0]
[1643350412701,21.14109088,93.397,93.312,0.25]
[1643350412901,0.25,93.396,93.301,5.19775937]
[1643350413100,6.0,93.387,93.301,5.19775937]
[1643350413304,107.2,93.385,93.302,0.25]
[1643350413508,6.0,93.375,93.302,0.25]
[1643350413708,41.40302589,93.374,93.302,0.25]
[1643350414006,6.0,93.364,93.302,0.25]
[1643350414408,6.0,93.364,93.303,10.4902]
[1643350414808,6.0,93.364,93.304,0.25]
[1643350417511,6.0,93.364,93.305,10.4902]
[1643350417512,107.2,93.363,93.305,10.4902]
[1643350417712,107.45,93.363,93.305,10.4902]
[1643350417913,6.0,93.353,93.306,0.25]
[1643350418213,49.32711047,93.352,93.306,0.25]
[1643350418615,107.2,93.363,93.306,0.25]
[1643350419814,107.2,93.361,93.306,0.25]
[1643350420214,45.35959009,93.362,93.306,0.25]
[1643350420615,0.25,93.361,93.306,0.25]
[1643350420839,0.25,93.361,93.307,10.4902]
[1643350421220,0.25,93.361,93.308,0.25]
[1643350421424,0.25,93.361,93.307,10.4902]
[1643350423022,0.25,93.361,93.308,0.25]
[1643350424223,0.25,93.361,93.309,10.4902]
[1643350424623,0.25,93.361,93.31,0.25]
[1643350427332,0.25,93.361,93.311,10.4902]
[1643350427733,0.25,93.361,93.312,0.25]
[1643350430370,0.25,93.361,93.313,10.4902]
[1643350430773,0.25,93.361,93.314,0.25]
[1643350431177,22.9042,93.384,93.314,0.25]
[1643350431577,6.0,93.374,93.314,0.25]
[1643350431780,22.9042,93.384,93.314,0.25]
[1643350432200,43.23197467,93.383,93.314,0.25]
[1643350433199,43.23197467,93.383,93.313,10.4902]
[1643350433200,107.2,93.382,93.313,10.4902]
[1643350433401,0.25,93.381,93.315,10.4902]
[1643350433602,25.2497,93.381,93.315,10.4902]
[1643350433902,6.0,93.372,93.315,10.4902]
[1643350434103,25.2497,93.381,93.315,10.4902]
[1643350434305,6.0,93.371,93.316,16.37990976]
[1643350434508,6.0,93.371,93.316,15.84168042]
[1643350434704,107.45,93.37,93.316,15.84168042]
[1643350435102,0.25,93.37,93.316,15.84168042]
[1643350435804,24.9997,93.381,93.316,15.84168042]
[1643350436606,24.9997,93.381,93.317,10.7402]
[1643350437208,0.25,93.38,93.317,10.7402]
[1643350437709,107.45,93.38,93.317,10.7402]
[1643350437909,107.2,93.37,93.317,10.7402]
[1643350438108,113.2,93.37,93.317,10.7402]
[1643350438308,0.25,93.369,93.317,10.7402]
[1643350439315,6.0,93.371,93.317,10.4902]
[1643350439508,6.0,93.37,93.317,10.4902]
[1643350439911,6.0,93.37,93.292,10.4902]
[1643350440214,6.0,93.37,93.292,10.7402]
[1643350440610,150.22840544,93.369,93.293,16.45508138]
[1643350440812,150.22840544,93.369,93.294,0.25]
[1643350442210,43.02840544,93.369,93.294,0.25]
[1643350442811,0.25,93.368,93.294,0.25]
[1643350443014,0.25,93.368,93.295,10.4902]
[1643350443418,0.25,93.368,93.296,0.25]
[1643350443612,107.45,93.368,93.296,0.25]
[1643350446719,107.45,93.368,93.297,10.4902]
[1643350447118,107.45,93.368,93.298,0.25]
[1643350447723,132.1125,93.368,93.298,0.25]
[1643350449922,132.1125,93.368,93.299,10.4902]
[1643350450322,132.1125,93.368,93.3,0.25]
[1643350453025,132.1125,93.368,93.301,10.4902]
[1643350453424,132.1125,93.368,93.302,0.25]
[1643350456133,132.1125,93.368,93.303,10.4902]
[1643350456329,132.1125,93.368,93.304,0.25]
[1643350458029,107.2,93.357,93.304,0.25]
[1643350458230,6.0,93.358,93.304,0.25]
[1643350458431,0.25,93.356,93.304,0.25]
[1643350459332,0.25,93.356,93.305,10.4902]
[1643350459531,6.0,93.358,93.305,10.4902]
[1643350459734,107.2,93.367,93.305,10.4902]
[1643350460434,107.2,93.356,93.305,10.4902]
[1643350460630,107.2,93.354,93.305,10.4902]
[1643350460832,0.25,93.353,93.305,10.4902]
[1643350461139,0.25,93.353,93.26,15.44]
[1643350461140,6.0,93.344,93.26,15.44]
[1643350461334,0.25,93.343,93.25,15.44]
[1643350461534,6.0,93.341,93.25,15.44]
[1643350461935,36.34526814,93.34,93.251,28.60207431]
[1643350462133,6.0,93.33,93.251,28.60207431]
[1643350462334,0.25,93.329,93.252,0.25]
[1643350462531,6.25,93.329,93.252,0.25]
[1643350462734,6.25,93.329,93.251,28.60207431]
[1643350462933,23.2334,93.328,93.251,28.60207431]
[1643350463133,6.0,93.329,93.251,28.60207431]
[1643350464533,6.0,93.329,93.252,0.25]
[1643350465134,6.0,93.33,93.252,0.25]
[1643350465970,1.49092525,93.347,93.252,0.25]
[1643350466163,1.49092525,93.345,93.261,6.0]
[1643350466360,2.97728253,93.381,93.27,15.44]
[1643350466563,2.96508604,93.411,93.28,6.0]
[1643350466761,2.97728253,93.418,93.29,15.44]
[1643350466962,39.3393762,93.417,93.292,1.43664023]
[1643350467160,39.3393762,93.417,93.3,22.0734]
[1643350467362,39.3393762,93.417,93.31,15.44]
[1643350467564,39.3393762,93.417,93.312,26.40777656]
[1643350467763,39.3393762,93.417,93.313,107.45]
[1643350467963,39.3393762,93.417,93.322,6.0]
[1643350468162,107.2,93.418,93.323,6.0]
[1643350468363,107.2,93.418,93.324,0.25]
[1643350468564,19.62442421,93.417,93.324,0.25]
[1643350469169,150.21125747,93.416,93.32,15.44]
[1643350469568,6.0,93.406,93.32,15.44]
[1643350469767,0.25,93.405,93.321,0.25]
[1643350469968,151.64849459,93.399,93.321,0.25]
[1643350470370,6.0,93.389,93.321,0.25]
[1643350470768,107.45,93.388,93.321,0.25]
[1643350471371,107.45,93.388,93.313,0.25]
[1643350473669,107.45,93.388,93.313,2.45834362]
[1643350474071,107.45,93.388,93.313,0.25]
[1643350475774,0.25,93.388,93.313,0.25]
[1643350476178,107.2,93.398,93.313,0.25]
[1643350476774,107.2,93.398,93.31,15.44]
[1643350476974,6.0,93.388,93.288,2.20834362]
[1643350477174,6.0,93.388,93.27,15.44]
[1643350477373,6.0,93.38,93.26,15.44]
[1643350477575,6.0,93.377,93.26,15.44]
[1643350477781,6.0,93.377,93.261,23.0307]
[1643350477976,0.25,93.376,93.261,25.23904362]
[1643350478178,6.0,93.369,93.262,2.45834362]
[1643350478378,16.0871,93.36,93.263,24.0465]
[1643350478586,6.0,93.35,93.263,24.0465]
[1643350478777,6.0,93.35,93.264,0.25]
[1643350478976,6.0,93.35,93.264,2.45834362]
[1643350478977,6.0,93.349,93.264,2.45834362]
[1643350479177,6.0,93.349,93.265,2.20834362]
[1643350479375,6.0,93.349,93.266,0.25]
[1643350479776,6.0,93.349,93.266,2.45834362]
[1643350480077,36.91269579,93.359,93.267,5.54626972]
[1643350480280,6.0,93.349,93.268,0.25]
[1643350480675,113.2,93.349,93.268,0.25]
[1643350481079,0.25,93.348,93.268,0.25]
[1643350482484,6.0,93.349,93.269,2.2085539]
[1643350482679,144.11269579,93.359,93.269,2.2085539]
[1643350482888,0.25,93.358,93.27,0.25]
[1643350483082,6.0,93.349,93.27,0.25]
[1643350483280,0.25,93.348,93.27,0.25]
[1643350483482,16.0919,93.34,93.24,15.44]
[1643350483881,107.2,93.329,93.25,6.0]
[1643350484081,6.0,93.319,93.25,6.0]
[1643350484281,147.36301179,93.318,93.251,26.59651876]
[1643350484581,147.36301179,93.318,93.25,6.0]
[1643350484780,147.36301179,93.318,93.251,0.25]
[1643350485181,0.25,93.317,93.251,0.25]
[1643350485583,6.0,93.308,93.245,25.48198543]
[1643350485780,0.25,93.307,93.245,25.48198543]
[1643350485981,113.45,93.307,93.245,25.48198543]
[1643350486384,113.2,93.307,93.245,25.48198543]
[1643350486781,113.2,93.307,93.246,0.25]
[1643350487584,16.0935,93.33,93.246,0.25]
[1643350487783,24.1532,93.359,93.247,2.2085539]
[1643350488000,24.1532,93.359,93.26,15.44]
[1643350488183,24.1532,93.359,93.261,24.2715]
[1643350488383,24.1532,93.359,93.27,6.0]
[1643350488586,45.92250559,93.358,93.271,10.55672911]
[1643350488784,45.92250559,93.358,93.271,10.80672911]
[1643350488985,6.0,93.348,93.28,6.0]
[1643350489185,6.0,93.348,93.281,6.0]
[1643350489385,0.25,93.347,93.281,6.25]
[1643350489583,0.25,93.347,93.282,6.0]
[1643350489785,0.25,93.347,93.283,0.25]
[1643350490489,0.25,93.356,93.283,0.25]
[1643350490883,0.25,93.357,93.283,0.25]
[1643350491085,0.25,93.357,93.282,6.25]
[1643350492086,0.25,93.357,93.283,6.0]
[1643350492285,0.25,93.357,93.284,0.25]
[1643350492687,107.45,93.357,93.273,2.2085539]
[1643350492887,107.45,93.357,93.274,0.25]
[1643350493089,107.45,93.357,93.282,6.0]
[1643350493288,107.45,93.357,93.283,0.25]
[1643350495689,107.2,93.355,93.282,6.0]
[1643350495886,0.25,93.354,93.283,0.25]
[1643350498293,0.25,93.354,93.273,0.25]
[1643350498786,0.25,93.354,93.273,2.45876402]
[1643350498993,0.25,93.354,93.274,2.20876402]
[1643350499387,0.25,93.354,93.275,0.25]
[1643350499792,107.2,93.344,93.276,2.20876402]
[1643350499989,107.2,93.342,93.275,0.25]
[1643350500389,107.2,93.342,93.272,23.2861]
[1643350500390,0.25,93.341,93.272,23.2861]
[1643350500592,0.25,93.341,93.25,15.44]
[1643350500795,23.5935,93.341,93.261,0.25]
[1643350501890,23.3435,93.341,93.253,0.25]
[1643350502090,23.3435,93.341,93.252,23.9849]
[1643350502091,107.2,93.34,93.252,23.9849]
[1643350502793,107.2,93.34,93.25,15.44]
[1643350503090,37.64730682,93.329,93.25,37.10726408]
[1643350503293,0.25,93.328,93.25,37.10726408]
[1643350503492,0.25,93.328,93.251,2.20876402]
[1643350504107,0.25,93.328,93.252,0.25]
[1643350504302,24.7943,93.357,93.252,0.25]
[1643350504499,24.7943,93.357,93.261,6.0]
[1643350504698,107.2,93.356,93.27,15.44]
[1643350504896,107.2,93.356,93.28,15.44]
[1643350505102,132.171,93.356,93.28,15.44]
[1643350505304,132.171,93.356,93.281,0.25]
[1643350505498,36.53984211,93.355,93.281,10.83021448]
[1643350505698,36.78984211,93.355,93.281,10.83021448]
[1643350506097,107.2,93.354,93.281,8.62145046]
[1643350506297,0.25,93.353,93.281,8.62145046]
[1643350506700,0.25,93.353,93.281,0.25]
[1643350507124,6.0,93.344,93.26,15.44]
[1643350507325,107.45,93.343,93.26,15.44]
[1643350507624,107.45,93.343,93.21,16.091]
[1643350507625,16.0951,93.32,93.229,2.20876402]
[1643350507825,6.0,93.333,93.226,25.18751457]
[1643350507826,45.45143312,93.318,93.226,25.18751457]
[1643350508024,6.0,93.308,93.226,25.18751457]
[1643350508428,0.25,93.307,93.226,25.18751457]
[1643350508825,23.6713,93.307,93.227,0.25]
[1643350509028,6.0,93.297,93.227,0.25]
[1643350509226,36.60387418,93.296,93.227,0.25]
[1643350509426,36.85387418,93.296,93.21,15.44]
[1643350509627,6.0,93.286,93.221,0.25]
[1643350509828,0.25,93.285,93.221,0.25]
[1643350510027,6.25,93.285,93.221,0.25]
[1643350510628,6.25,93.285,93.211,21.93807097]
[1643350511728,0.25,93.285,93.211,21.93807097]
[1643350511928,38.94357864,93.274,93.212,0.25]
[1643350512329,0.25,93.273,93.212,0.25]
[1643350512629,38.94357864,93.274,93.213,2.20918411]
[1643350512831,38.94357864,93.274,93.214,0.25]
[1643350513230,38.94357864,93.274,93.215,2.20918411]
[1643350513631,38.94357864,93.274,93.216,0.25]
[1643350513829,0.25,93.273,93.216,0.25]
[1643350514033,38.69357864,93.274,93.216,0.25]
[1643350514430,107.2,93.273,93.216,0.25]
[1643350514830,107.2,93.273,93.211,0.25]
[1643350515433,0.25,93.272,93.211,0.25]
[1643350516036,0.25,93.272,93.2,15.44]
[1643350516233,23.4238,93.272,93.2,15.44]
[1643350516435,23.4238,93.272,93.201,0.25]
[1643350516436,6.0,93.263,93.201,0.25]
[1643350516635,113.2,93.262,93.201,0.25]
[1643350516833,23.1738,93.272,93.201,0.25]
[1643350517033,6.0,93.262,93.201,29.12005297]
[1643350517434,6.0,93.262,93.201,0.25]
[1643350517833,6.0,93.262,93.17,15.44]
[1643350518034,155.9157,93.261,93.17,15.44]
[1643350518238,16.1057,93.26,93.161,24.826]
[1643350518439,149.88338803,93.259,93.162,27.43412886]
[1643350520339,42.68338803,93.259,93.162,29.64331297]
[1643350520537,42.68338803,93.259,93.172,6.0]
[1643350520738,24.6534,93.289,93.18,15.44]
[1643350521140,6.0,93.279,93.19,6.0]
[1643350521336,6.0,93.279,93.191,25.1435]
[1643350521536,6.0,93.279,93.191,27.35268411]
[1643350521744,42.24842211,93.278,93.192,2.85458568]
[1643350522138,6.0,93.268,93.193,0.25]
[1643350523940,6.0,93.268,93.202,6.0]
[1643350524140,6.0,93.279,93.21,15.44]
[1643350524340,6.0,93.279,93.211,0.25]
[1643350524541,6.0,93.279,93.22,6.0]
[1643350524841,6.0,93.279,93.221,27.68412886]
[1643350525642,6.0,93.288,93.221,27.68412886]
[1643350526041,6.0,93.288,93.231,6.0]
[1643350526246,6.0,93.288,93.232,0.25]
[1643350527043,6.0,93.285,93.232,0.25]
[1643350527648,6.0,93.285,93.222,0.25]
[1643350528044,6.0,93.285,93.231,6.0]
[1643350528245,23.6148,93.308,93.232,0.25]
[1643350528643,23.6148,93.308,93.233,2.20918411]
[1643350528946,2.96508604,93.353,93.233,2.20918411]
[1643350528947,2.96508604,93.369,93.234,0.25]
[1643350529143,50.11861633,93.378,93.243,6.0]
[1643350529350,47.1483,93.378,93.251,2.85458568]
[1643350529548,40.11835921,93.391,93.27,16.0796]
[1643350529745,40.11835921,93.391,93.28,15.44]
[1643350529944,40.11835921,93.391,93.281,22.8869]
[1643350530146,40.11835921,93.391,93.281,31.34608411]
[1643350530348,47.6132,93.403,93.29,6.0]
[1643350530547,6.0,93.393,93.291,30.2827]
[1643350530748,47.6132,93.403,93.3,6.0]
[1643350531146,47.6132,93.403,93.301,6.25]
[1643350531550,42.47148875,93.402,93.31,6.0]
[1643350531747,42.47148875,93.402,93.311,6.25]
[1643350532050,42.47148875,93.402,93.321,6.0]
[1643350532246,0.25,93.401,93.322,22.44617609]
[1643350532948,107.45,93.401,93.322,22.19617609]
[1643350533248,125.55053533,93.401,93.322,22.19617609]
[1643350534251,19.03819142,93.4,93.322,22.19617609]
[1643350534453,107.2,93.399,93.322,22.19617609]
[1643350534752,128.25722675,93.399,93.322,22.19617609]
[1643350534951,18.10053533,93.398,93.3,15.44]
[1643350535251,18.10053533,93.398,93.301,0.25]
[1643350535454,6.0,93.388,93.301,0.25]
[1643350535651,24.8922,93.387,93.301,0.25]
[1643350535852,46.41979671,93.386,93.301,26.2931181]
[1643350536852,46.41979671,93.386,93.301,26.0431181]
[1643350538154,18.10053533,93.418,93.311,6.0]
[1643350538354,24.0347,93.402,93.32,15.44]
[1643350538755,24.0347,93.402,93.321,0.25]
[1643350539056,24.0347,93.402,93.32,15.44]
[1643350539256,24.0347,93.402,93.285,2.20918411]
[1643350539257,6.0,93.392,93.285,2.20918411]
[1643350539457,107.2,93.391,93.27,15.44]
[1643350539654,159.07602675,93.391,93.26,15.44]
[1643350539954,21.05722675,93.39,93.26,15.44]
[1643350540155,35.23184083,93.389,93.261,23.97382958]
[1643350540353,16.0844,93.38,93.261,23.97382958]
[1643350540554,6.0,93.37,93.271,6.0]
[1643350540755,107.2,93.369,93.261,23.97382958]
[1643350540978,6.0,93.359,93.262,0.25]
[1643350541180,107.2,93.358,93.262,0.25]
[1643350541378,113.45,93.358,93.262,0.25]
[1643350541782,24.2206,93.357,93.262,0.25]
[1643350542078,6.0,93.347,93.262,0.25]
[1643350542279,49.00537776,93.339,93.262,0.25]
[1643350542680,6.0,93.347,93.262,0.25]
[1643350542879,24.2206,93.357,93.262,24.7494]
[1643350543180,24.2206,93.357,93.272,6.0]
[1643350543379,24.2206,93.357,93.273,23.7309]
[1643350543880,35.88636645,93.356,93.273,23.7309]
[1643350544080,35.88636645,93.356,93.284,6.31488496]
[1643350544279,107.2,93.355,93.285,0.25]
[1643350545484,16.09,93.35,93.27,6.0]
[1643350545680,6.0,93.34,93.261,28.13197966]
[1643350545886,130.5202,93.339,93.261,0.25]
[1643350546181,6.0,93.329,93.261,0.25]
[1643350546381,107.2,93.328,93.261,0.25]
[1643350546782,44.61351021,93.327,93.261,22.3351304]
[1643350547585,6.0,93.329,93.261,22.3351304]
[1643350548082,23.3202,93.339,93.261,22.3351304]
[1643350548683,40.00433508,93.338,93.261,22.3351304]
[1643350549489,40.00433508,93.338,93.271,6.0]
[1643350549687,0.25,93.337,93.271,6.0]
[1643350549987,0.25,93.337,93.261,22.3351304]
[1643350549988,0.25,93.337,93.272,0.25]
[1643350550789,6.0,93.328,93.262,0.25]
[1643350553691,6.0,93.328,93.261,22.0851304]
[1643350554693,40.00433508,93.338,93.261,22.0851304]
[1643350554893,23.3202,93.339,93.261,22.0851304]
[1643350555193,23.3202,93.339,93.271,6.0]
[1643350555495,23.3202,93.339,93.272,0.25]
[1643350555693,23.3202,93.339,93.262,22.8428]
[1643350555997,15.44,93.38,93.272,6.0]
[1643350555998,47.14779104,93.352,93.272,6.0]
[1643350556193,6.0,93.342,93.262,22.8428]
[1643350556594,6.0,93.341,93.262,22.8428]
[1643350556793,6.0,93.341,93.272,6.0]
[1643350557395,6.0,93.341,93.273,0.25]
[1643350558392,23.4998,93.351,93.273,0.25]
[1643350558593,6.0,93.341,93.273,0.25]
[1643350560093,6.0,93.342,93.273,0.25]
[1643350563398,6.0,93.341,93.273,0.25]
[1643350566100,24.7989,93.351,93.273,0.25]
[1643350566299,23.0045,93.369,93.28,6.0]
[1643350566498,23.0045,93.369,93.283,6.0]
[1643350566901,23.0045,93.369,93.284,0.25]
[1643350567303,23.0045,93.369,93.292,6.0]
[1643350567499,23.0045,93.369,93.294,6.0]
[1643350567901,23.0045,93.369,93.295,0.25]
[1643350568100,23.0045,93.369,93.3,6.0]
[1643350568300,23.0045,93.369,93.301,22.3351304]
[1643350573009,24.8563,93.376,93.311,6.0]
[1643350573420,24.8563,93.376,93.312,0.25]
[1643350573607,24.8563,93.376,93.32,6.0]
[1643350573806,24.8563,93.376,93.321,8.45358414]
[1643350575209,24.8563,93.376,93.331,6.0]
[1643350575410,24.8563,93.376,93.332,0.25]
[1643350576412,2.96508604,93.404,93.332,0.25]
[1643350576612,2.96508604,93.405,93.332,0.25]
[1643350577015,2.96508604,93.405,93.332,6.25]
[1643350577216,2.96508604,93.405,93.332,6.0]
[1643350577415,41.4798472,93.404,93.333,0.25]
[1643350577620,2.97785022,93.403,93.333,0.25]
[1643350578515,24.7997,93.402,93.333,0.25]
[1643350578715,2.97785022,93.401,93.333,0.25]
[1643350580121,2.97785022,93.401,93.333,109.65960399]
[1643350580317,2.96508604,93.417,93.34,15.44]
[1643350580621,2.9752834,93.416,93.35,6.0]
[1643350580816,2.96508604,93.429,93.351,0.25]
[1643350581021,2.96508604,93.43,93.351,30.54473439]